Cogmind - Beta 13 --- EXPLORER MODE // 2024.07.22 @ 07:19:57 Player: Kino Result: Destroyed by H-71 Marshal with Heavy Mass Driver Performance ------------- Evolutions (5) 2500 Regions Visited (11) 2200 Robots Destroyed (109) 545 Value Destroyed (3666) 3666 Prototype IDs (6) 120 Alien Tech Used (0) 0 Bonus (1421) 1421 TOTAL SCORE: 10452 Bonus ------- Follower Combat Kills 638 Entered DSFs 500 Acquired ECA 300 Friendly Fire -17 Cogmind --------- Core Integrity 0/1000 Matter 300/300 Energy 100/100 System Corruption 4% Temperature Cool (0) Movement Core (1350) Ox26 Location -5/Factory Parts ------- > --- POWER (2) -------- (None) > --- PROPULSION (4) --- (None) > --- UTILITY (10) ----- Huge Storage Unit Improved Signal Interpreter Encrypted Comm Array > --- WEAPON (2) ------- (None) > --- INVENTORY (25) --- Carbon-fiber Leg Carbon-fiber Leg Carbon-fiber Leg Improved Signal Interpreter Axe Peak State ------------ > --- POWER ------------ Micro Nuclear Core Neutrino Core > --- PROPULSION ------- Carbon-fiber Leg Improved Carbon-fiber Leg Flexi-carbon Leg Armored Leg > --- UTILITY ---------- Heat Sink Huge Storage Unit Improved Signal Interpreter Encrypted Comm Array Improved Melee Analysis Suite Core Analyzer Improved Utility Shielding Heart of Steel > --- WEAPON ----------- Gatling Laser > --- INVENTORY -------- Ion Engine Improved Sensor Array Light Assault Rifle Autogun Axe [Rating: 77] Favorites ----------- Power Heavy Ion Engine Engine Heavy Ion Engine Power Core Micro Nuclear Core Propulsion Surge Thruster Treads Light Treads Leg Flexi-carbon Leg Flight Unit Surge Thruster Utility Large Storage Unit Device Heat Sink Storage Large Storage Unit Processor Core Analyzer Protection Improved Utility Shielding Weapon Gatling Laser Energy Gun Gatling Laser Energy Cannon Phase Cannon Ballistic Gun Autogun Ballistic Cannon Light Cannon Launcher Missile Launcher Build | -11 -10 -10 -9 -9 -8 -7 -7 -6 -6 -6 -5 ------- Run | Yrd Mat Min Mat Sto Mat Fac DSF Fac Low Low Fac Slots Evolved 11 | . 1 . 2 . 2 2 . 2 . . 2 Power 1 | . . . . . . 1 . . . . . Propulsion 2 | . . . 2 . . . . . . . . Utility 8 | . 1 . . . 2 1 . 2 . . 2 Weapon . | . . . . . . . . . . . . Parts Attached 100 | 7 3 2 20 2 22 3 5 8 13 1 14 Power 14 | 1 . . 2 1 2 1 2 . 1 . 4 Engine 10 | 1 . . 2 1 1 1 2 . 1 . 1 Core 4 | . . . . . 1 . . . . . 3 Reactor . | . . . . . . . . . . . . Propulsion 34 | 2 . . 8 . 12 . 2 2 5 . 3 Treads 8 | . . . 5 . 3 . . . . . . Leg 13 | 2 . . 3 . . . . . 5 . 3 Wheel . | . . . . . . . . . . . . Hover . | . . . . . . . . . . . . Flight 13 | . . . . . 9 . 2 2 . . . Utility 25 | 2 2 2 3 . 4 2 1 2 2 1 4 Device 8 | 1 . 1 1 . . 1 . 1 1 1 1 Storage 3 | 1 1 . . . . . . . . . 1 Processor 5 | . . . 1 . 1 . 1 . . . 2 Hackware . | . . . . . . . . . . . . Protection 9 | . 1 1 1 . 3 1 . 1 1 . . Artifact . | . . . . . . . . . . . . Weapon 27 | 2 1 . 7 1 4 . . 4 5 . 3 Energy Gun 7 | 1 . . . 1 1 . . 1 2 . 1 Energy Cannon 6 | . . . 5 . . . . 1 . . . Ballistic Gun 12 | 1 . . 2 . 3 . . 2 2 . 2 Ballistic Cannon 1 | . 1 . . . . . . . . . . Launcher 1 | . . . . . . . . . 1 . . Special Weapon . | . . . . . . . . . . . . Impact Weapon . | . . . . . . . . . . . . Slashing Weapon . | . . . . . . . . . . . . Piercing Weapon . | . . . . . . . . . . . . Special Melee Weapon . | . . . . . . . . . . . . Unidentified Prototypes 4 | . . 1 . 1 1 . . . . 1 . Corrupted Parts 1 | . . . . . 1 . . . . . . System Corruption 1 | . . . . . 1 . . . . . . Parts Lost 33 | . . . 1 . 1 . 3 . 8 . 20 Power 6 | . . . . . . . 1 . 1 . 4 Propulsion 12 | . . . . . 1 . 2 . 3 . 6 Utility 9 | . . . 1 . . . . . 3 . 5 Weapon 6 | . . . . . . . . . 1 . 5 Highest Loss Streak 14 | . . . 1 . 1 . 3 . 7 . 14 To Critical Strikes 1 | . . . . . . . . . . . 1 Average Slot Usage (%) 90 | . 100 100 95 100 97 100 95 99 91 86 74 Engine 9 | . 12 12 9 10 4 7 10 12 11 12 5 Core 1 | . . . . . 3 7 3 . . . 4 Treads 4 | . . . 4 40 13 . . . . . . Leg 13 | . 25 25 34 . . . . . 6 25 16 Flight 7 | . . . . . 17 28 24 25 13 . . Device 12 | . 12 12 7 10 . 7 7 11 15 15 15 Storage 7 | . 12 12 10 10 8 7 7 6 6 6 5 Processor 11 | . . . . 10 15 14 16 18 16 8 12 Protection 7 | . 12 12 9 . 16 14 11 11 6 6 4 Energy Gun 3 | . 9 . . 3 6 7 7 2 1 6 4 Energy Cannon 1 | . . . 3 6 . . . 1 4 . . Ballistic Gun 5 | . 12 12 8 10 9 7 7 7 4 . . Ballistic Cannon 1 | . 2 12 7 . . . . . . . . Launcher 1 | . . . . . . . . . 1 6 2 Naked Turns . | . . . . . . . . . . . . Heaviest Build 121 | 21 35 35 37 33 36 41 44 53 53 61 121 Greatest Support 83 | 20 20 20 80 80 83 15 15 12 70 70 70 Greatest Overweight (x) 28 | 3 1 1 1 . 4 2 6 4 15 . 28 Average Overweight (x) 1 | 1 1 1 . . . 2 2 3 2 . 1 Largest Inventory Capacity 25 | 10 15 15 15 15 15 15 15 15 15 15 25 Average Capacity 16 | 9 12 15 15 15 15 15 15 15 15 15 24 Most Carried 15 | 7 9 11 15 13 15 13 13 10 12 8 10 Average Carried 8 | 3 7 9 11 11 13 12 11 7 9 5 6 Final Capacity 25 | 10 15 15 15 15 15 15 15 15 15 15 25 Final Carried 14 | 7 9 10 10 12 14 12 10 9 5 6 5 Class Distribution -------------------- 60% | Hacker-Mutant 37% | Scavenger-Mutant Dominant Class ---------------- Hacker-Mutant | -10/Materials Hacker-Mutant | -10/Mines Hacker-Mutant | -9/Materials Hacker-Mutant | -9/Storage Hacker-Mutant | -8/Materials Hacker-Mutant | -7/Factory Hacker-Mutant | -7/DSF Hacker-Mutant | -6/Factory Hacker-Mutant | -6/Lower Caves Scavenger-Mutant | -6/Lower Caves Scavenger-Mutant | -5/Factory Resources | -11 -10 -10 -9 -9 -8 -7 -7 -6 -6 -6 -5 ----------- Run | Yrd Mat Min Mat Sto Mat Fac DSF Fac Low Low Fac Matter Collected 3976 | 119 104 118 307 219 288 . 220 110 131 244 2116 Remotely . | . . . . . . . . . . . . Salvage Created 5072 | . . 18 885 361 383 . 451 132 435 96 2311 Parts 233 | . . 3 45 20 29 . 24 8 26 4 74 Haulers Intercepted . | . . . . . . . . . . . . Recyclers Shooed 18 | . . . 1 . . . . . . . 17 Parts Field Recycled . | . . . . . . . . . . . . Retrieved Matter . | . . . . . . . . . . . . Parts Self-Destructed . | . . . . . . . . . . . . Prevented . | . . . . . . . . . . . . Kills | -11 -10 -10 -9 -9 -8 -7 -7 -6 -6 -6 -5 ------- Run | Yrd Mat Min Mat Sto Mat Fac DSF Fac Low Low Fac Combat Hostiles Destroyed 70 | . . 2 18 7 7 . 8 2 11 3 12 Guns 46 | . . . 8 3 7 . 8 2 4 3 11 Cannons 18 | . . 2 10 2 . . . . 4 . . AOE 5 | . . . . 2 . . . . 3 . . Classes Destroyed 16 | . . 1 7 . 1 . 1 . 1 2 3 Worker 10 | . . . . . . . . . . . 10 Builder 3 | . . . . . . . . . . . 3 Tunneler 2 | . . . . . . . . . . . 2 Recycler 13 | . . . 2 . . . . . . . 11 Mechanic 2 | . . . . . . . . . . . 2 Operator 1 | . . . 1 . . . . . . . . Watcher 8 | . . . 3 1 2 . . . . . 2 Swarmer 13 | . . 2 3 . 1 . . . 5 2 . Grunt 26 | . . . 9 2 3 . 5 . 2 . 5 Brawler 2 | . . . 1 . . . . . . . 1 Duelist 3 | . . . 1 . . . 1 . 1 . . Sentry 14 | . . . 4 5 2 . . 2 . . 1 Hunter 5 | . . . . . 1 . 1 . 2 . 1 Programmer 5 | . . . . . . . . . . 1 4 Heavy 1 | . . . . . . . 1 . . . . Behemoth 1 | . . . . . . . . . 1 . . Decomposer 1 | . . . . . . . . . . 1 . Best Kill Streak 7 | . . 2 7 2 5 . 4 1 3 2 6 Combat Bots Only 4 | . . 2 3 2 3 . 4 1 3 2 2 Max Kills in Single Turn 3 | . . 1 1 2 1 . 1 1 2 1 3 Gunslinging . | . . . . . . . . . . . . Exploded 2 | . . . . 2 . . . . 2 . . Melee . | . . . . . . . . . . . . Uniques/NPCs Destroyed . | . . . . . . . . . . . . Combat | -11 -10 -10 -9 -9 -8 -7 -7 -6 -6 -6 -5 -------- Run | Yrd Mat Min Mat Sto Mat Fac DSF Fac Low Low Fac Hostile Shots Fired 616 | . . 2 64 51 31 . 63 63 108 12 222 Missed 150 | . . . 21 10 9 . 18 19 27 2 44 Damage Taken 5876 | . . 7 410 389 232 . 641 197 1042 95 2863 Core 1471 | . . . 22 95 33 . 145 9 113 11 1043 Absorbed by Shields . | . . . . . . . . . . . . Redirected to Shielding 267 | . . . . . 24 . 50 13 108 10 62 Ignored by Resistances 3499 | . . 6 249 240 140 . 376 146 614 60 1668 Core Remaining (%) 87 | 100 . 100 . 70 94 . 79 . . 84 . Volleys Fired 296 | . . 3 52 19 27 . 29 6 32 10 118 Largest 2 | . . 2 2 2 2 . 2 2 2 1 2 Hottest 121 | . . 55 112 76 63 . 84 105 121 80 103 Shots Fired 465 | . . 6 98 37 54 . 58 12 62 10 128 Gun 362 | . . 3 48 24 54 . 58 12 25 10 128 Cannon 97 | . . 3 50 13 . . . . 31 . . Launcher 6 | . . . . . . . . . 6 . . Special . | . . . . . . . . . . . . Kinetic 247 | . . 6 90 19 42 . 29 10 24 . 27 Thermal 174 | . . . . . . . 29 2 32 10 101 Explosive 6 | . . . . . . . . . 6 . . Electromagnetic 38 | . . . 8 18 12 . . . . . . Robot Hit Streak 43 | . . 1 38 43 24 . 27 18 30 15 38 Robot Miss Streak 3 | . . 1 1 2 1 . 1 . 1 2 3 Penetration Max . | . . . . . . . . . . . . Secondary Targets 5 | . . . . . . . 4 . . . 1 Max Gunslinging Chain 1 | . . . . . . . 1 . . . 1 Shots Hit Robots 410 | . . 2 85 27 45 . 51 12 53 10 125 Core Hits 258 | . . 2 34 16 22 . 20 7 24 8 125 Critical Kills . | . . . . . . . . . . . . Critical Parts Destroyed . | . . . . . . . . . . . . Critical Strikes 5 | . . 1 2 . . . 2 . . . . Burn 2 | . . . . . . . 2 . . . . Blast 2 | . . 1 1 . . . . . . . . Corrupt 1 | . . . 1 . . . . . . . . Melee Attacks . | . . . . . . . . . . . . Impact . | . . . . . . . . . . . . Slashing . | . . . . . . . . . . . . Piercing . | . . . . . . . . . . . . Sneak Attacks . | . . . . . . . . . . . . Combat Hostiles . | . . . . . . . . . . . . Follow-up Attacks . | . . . . . . . . . . . . Damage Inflicted 8800 | . . 38 1310 441 771 . 891 231 1528 237 3353 Guns 6052 | . . . 541 151 611 . 891 231 299 237 3091 Cannons 1858 | . . 38 769 205 . . . . 846 . . Explosions 881 | . . . . 76 160 . . . 383 . 262 Melee . | . . . . . . . . . . . . Ramming 9 | . . . . 9 . . . . . . . Kinetic 2887 | . . 38 1127 98 453 . 351 168 287 . 365 Thermal 4922 | . . . . 76 160 . 540 63 858 237 2988 Explosive 383 | . . . . . . . . . 383 . . Electromagnetic 599 | . . . 183 258 158 . . . . . . Impact . | . . . . . . . . . . . . Slashing . | . . . . . . . . . . . . Piercing . | . . . . . . . . . . . . Highest Corruption 4 | . . . . . 1 . . . . . 4 Average Corruption 2 | . . . . . 1 . . . . . 2 Corruption Purged . | . . . . . . . . . . . . Corruption Blocked . | . . . . . . . . . . . . Effects 26 | . . . . . 2 . . . . . 24 Message Errors 6 | . . . . . . . . . . . 6 Matter Fused 3 | . . . . . . . . . . . 3 Heat Flow Errors 5 | . . . . . 1 . . . . . 4 Energy Discharges 7 | . . . . . 1 . . . . . 6 Parts Rejected 1 | . . . . . . . . . . . 1 Data Loss (minor) 3 | . . . . . . . . . . . 3 Alerts 1 | . . . . . . . . . . . 1 Overload Shots . | . . . . . . . . . . . . Overflow Damage 162 | . . . 6 . . . . . 4 . 152 Projectiles 6 | . . . 6 . . . . . . . . Explosions 156 | . . . . . . . . . 4 . 152 Melee . | . . . . . . . . . . . . Knockbacks 5 | . . . 5 . . . . . . . . Impact . | . . . . . . . . . . . . Kinetic 4 | . . . 4 . . . . . . . . Secondary 1 | . . . 1 . . . . . . . . Self-Inflicted Damage 101 | . . . . . 18 . . . . . 83 Shots 3 | . . . . . 1 . . . . . 2 Rammed 2 | . . . . 2 . . . . . . . Targets Rammed 2 | . . . . 2 . . . . . . . Kicked . | . . . . . . . . . . . . Crushed . | . . . . . . . . . . . . Highest Temperature 492 | . . 6 102 101 88 . 3 8 492 48 303 Average Temperature 45 | . . 3 22 34 23 . 3 8 122 18 44 Received Heat Transfer 1820 | . . . 216 249 108 . 306 114 584 . 243 Effects 5 | . . . . . . . . . 5 . . Shutdowns 3 | . . . . . . . . . 3 . . Energy Bleed 1 | . . . . . . . . . 1 . . Short Circuit 1 | . . . . . . . . . 1 . . Siege Activations . | . . . . . . . . . . . . Robots Corrupted . | . . . . . . . . . . . . Combat Hostiles . | . . . . . . . . . . . . Parts Fried 5 | . . . 2 1 2 . . . . . . Impact Corruptions . | . . . . . . . . . . . . Robots Melted 1 | . . . . . . . . . . . 1 Combat Hostiles 1 | . . . . . . . . . . . 1 Parts Melted 17 | . . . . . . . . . 2 1 14 Heat Transferred 9156 | . . . . . 250 . 1147 150 1024 500 6085 Parts Sabotaged . | . . . . . . . . . . . . Parts Stolen . | . . . . . . . . . . . . Parts Stripped . | . . . . . . . . . . . . Power Chain Reactions 3 | . . . . 1 2 . . . . . . Alert | -11 -10 -10 -9 -9 -8 -7 -7 -6 -6 -6 -5 ------- Run | Yrd Mat Min Mat Sto Mat Fac DSF Fac Low Low Fac Peak Influence 373 | . 15 69 373 320 254 83 223 191 . . 363 Initial 86 | . . 4 . 81 17 83 44 86 . . 2 Average 106 | . . 20 169 171 112 83 106 150 . . 97 Maximum Alert Level 1 | . . . 1 1 1 . 1 . . . 1 Low Security (%) 80 | 100 100 100 64 46 78 100 94 100 . . 82 Level 1 19 | . . . 35 53 21 . 5 . . . 17 Level 2 . | . . . . . . . . . . . . Level 3 . | . . . . . . . . . . . . Level 4 . | . . . . . . . . . . . . Level 5 . | . . . . . . . . . . . . High Security . | . . . . . . . . . . . . Max Security . | . . . . . . . . . . . . Sterilizations 1 | . . . . . . . 1 . . . . Squads Dispatched 12 | . . . 1 2 . . 1 . . . 8 Investigation 1 | . . . . 1 . . . . . . . Extermination 2 | . . . . . . . . . . . 2 Reinforcement 8 | . . . 1 1 . . 1 . . . 5 Assault 1 | . . . . . . . . . . . 1 Garrison . | . . . . . . . . . . . . Intercept . | . . . . . . . . . . . . Searches Triggered . | . . . . . . . . . . . . Construction Impeded 2 | . . . . . . . . . . . 2 Haulers Reinforced 2 | . . . . . . . . . . . 2 Active Scanning Responses . | . . . . . . . . . . . . Cargo Convoy Interrupts 1 | . . . . . . . . . . . 1 Stealth | -11 -10 -10 -9 -9 -8 -7 -7 -6 -6 -6 -5 --------- Run | Yrd Mat Min Mat Sto Mat Fac DSF Fac Low Low Fac Distress Signals 7 | . . . 3 . . . . . . . 4 Communications Jammed . | . . . . . . . . . . . . Distress Signals . | . . . . . . . . . . . . Times Spotted 126 | . 1 2 30 15 17 . 9 3 13 3 33 Peak Tracking Total 6 | . 1 2 6 2 2 . 3 1 3 2 5 Tactical Retreats 9 | . . . 5 1 . . 1 . 1 . 1 Traps | -11 -10 -10 -9 -9 -8 -7 -7 -6 -6 -6 -5 ------- Run | Yrd Mat Min Mat Sto Mat Fac DSF Fac Low Low Fac Traps Triggered 5 | . . . 2 . 2 . 1 . . . . Indirectly . | . . . . . . . . . . . . Trap Hack Attempts . | . . . . . . . . . . . . Triggered . | . . . . . . . . . . . . Disarmed . | . . . . . . . . . . . . Reprogrammed . | . . . . . . . . . . . . Reused . | . . . . . . . . . . . . Traps Extracted . | . . . . . . . . . . . . Installed . | . . . . . . . . . . . . Triggered 2 | . . . . . . . . . . . 2 Machines | -11 -10 -10 -9 -9 -8 -7 -7 -6 -6 -6 -5 ---------- Run | Yrd Mat Min Mat Sto Mat Fac DSF Fac Low Low Fac Machines Disabled 20 | . . . . 1 1 . 1 . . . 17 Max in Single Turn 13 | . . . . 1 1 . 1 . . . 13 Garrison Access 1 | . . . . . . . . . . . 1 Machines Repaired . | . . . . . . . . . . . . Machines Dismantled . | . . . . . . . . . . . . Machines Sabotaged . | . . . . . . . . . . . . Overloaded Fab Kills . | . . . . . . . . . . . . Hacking | -11 -10 -10 -9 -9 -8 -7 -7 -6 -6 -6 -5 --------- Run | Yrd Mat Min Mat Sto Mat Fac DSF Fac Low Low Fac Machines Accessed 10 | . . 1 2 2 3 1 . . . 1 . Terminals 8 | . . . 2 2 3 1 . . . . . Fabricators . | . . . . . . . . . . . . Repair Stations . | . . . . . . . . . . . . Recycling Units . | . . . . . . . . . . . . Scanalyzers . | . . . . . . . . . . . . Garrison Access . | . . . . . . . . . . . . Total Hacks 15 | . . 1 4 5 3 1 . . . 1 . Successful 11 | . . 1 4 1 3 1 . . . 1 . Failed 4 | . . . . 4 . . . . . . . Catastrophic . | . . . . . . . . . . . . Database Lockouts . | . . . . . . . . . . . . Manual . | . . . . . . . . . . . . Terminals 13 | . . . 4 5 3 1 . . . . . Fabricators . | . . . . . . . . . . . . Repair Stations . | . . . . . . . . . . . . Recycling Units . | . . . . . . . . . . . . Scanalyzers . | . . . . . . . . . . . . Garrison Access . | . . . . . . . . . . . . Terminal Hacks 11 | . . 1 4 1 3 1 . . . 1 . Record 1 | . . . 1 . . . . . . . . Prototype ID Bank 1 | . . . 1 . . . . . . . . Open Door 2 | . . 1 . . . . . . . 1 . Open DSF 1 | . . . . . . 1 . . . . . Emergency Access Points 2 | . . . . . 2 . . . . . . Unreport Threat 1 | . . . . 1 . . . . . . . Locate Traps 2 | . . . 1 . 1 . . . . . . Zone Layout 1 | . . . 1 . . . . . . . . Fabricator Hacks . | . . . . . . . . . . . . Repair Station Hacks . | . . . . . . . . . . . . Recycling Unit Hacks . | . . . . . . . . . . . . Scanalyzer . | . . . . . . . . . . . . Garrison Access Hacks . | . . . . . . . . . . . . Unauthorized Hacks . | . . . . . . . . . . . . Terminals . | . . . . . . . . . . . . Fabricators . | . . . . . . . . . . . . Repair Stations . | . . . . . . . . . . . . Recycling Units . | . . . . . . . . . . . . Scanalyzers . | . . . . . . . . . . . . Garrison Access . | . . . . . . . . . . . . Data Cores Recovered . | . . . . . . . . . . . . Used . | . . . . . . . . . . . . Hacking Detections 3 | . . . . 2 1 . . . . . . Full Trace Events 1 | . . . . 1 . . . . . . . Feedback Events . | . . . . . . . . . . . . Feedback Blocked . | . . . . . . . . . . . . Robot Schematics Acquired . | . . . . . . . . . . . . Robots Built . | . . . . . . . . . . . . Authchips . | . . . . . . . . . . . . Time . | . . . . . . . . . . . . Total Robot Build Rating . | . . . . . . . . . . . . Part Schematics Acquired . | . . . . . . . . . . . . Parts Built . | . . . . . . . . . . . . Authchips . | . . . . . . . . . . . . Time . | . . . . . . . . . . . . Total Part Build Rating . | . . . . . . . . . . . . Parts Repaired . | . . . . . . . . . . . . Time . | . . . . . . . . . . . . Parts Recycled . | . . . . . . . . . . . . Recycled Matter . | . . . . . . . . . . . . Retrieved Matter . | . . . . . . . . . . . . Retrieved Components . | . . . . . . . . . . . . Parts Scanalyzed . | . . . . . . . . . . . . Part Schematics Acquired . | . . . . . . . . . . . . Parts Damaged . | . . . . . . . . . . . . Bothacking | -11 -10 -10 -9 -9 -8 -7 -7 -6 -6 -6 -5 ------------ Run | Yrd Mat Min Mat Sto Mat Fac DSF Fac Low Low Fac Used RIF Installer . | . . . . . . . . . . . . Robots Hacked . | . . . . . . . . . . . . Non-combat . | . . . . . . . . . . . . Combat . | . . . . . . . . . . . . Robot Hacks Applied . | . . . . . . . . . . . . Relay Couplers Released 2 | . . . . . . . . . . . 2 Machine Destruction 2 | . . . . . . . . . . . 2 Fabnet Peak Effective % . | . . . . . . . . . . . . Robots Rewired . | . . . . . . . . . . . . Allies Hacked . | . . . . . . . . . . . . Hacks Repelled . | . . . . . . . . . . . . Allies | -11 -10 -10 -9 -9 -8 -7 -7 -6 -6 -6 -5 -------- Run | Yrd Mat Min Mat Sto Mat Fac DSF Fac Low Low Fac Total Allies 10 | . . . . 9 . . . . . . 1 Largest Group 9 | . . . . 9 1 . . . . . 1 Highest-Rated Group 99 | . . . . 80 16 . . . . . 99 Highest-Rated Ally 99 | . . . . 16 16 . . . . . 99 Total Orders . | . . . . . . . . . . . . Ally Attacks 87 | . . . . 42 24 . . . . . 21 Total Damage 2225 | . . . . 414 268 . . . . . 1543 Kills 22 | . . . . 5 6 . . . . . 11 Allies Corrupted . | . . . . . . . . . . . . Allies Melted . | . . . . . . . . . . . . Intel | -11 -10 -10 -9 -9 -8 -7 -7 -6 -6 -6 -5 ------- Run | Yrd Mat Min Mat Sto Mat Fac DSF Fac Low Low Fac Robot Analysis Total . | . . . . . . . . . . . . Derelict Logs Recovered 3 | . . 1 . . . . . . 2 . . Drone Launches . | . . . . . . . . . . . . Drone Recoveries . | . . . . . . . . . . . . Exploration | -11 -10 -10 -9 -9 -8 -7 -7 -6 -6 -6 -5 ------------- Run | Yrd Mat Min Mat Sto Mat Fac DSF Fac Low Low Fac Turns Passed 7924 | 135 256 457 646 566 794 41 252 310 1892 1011 1564 Spaces Moved 3870 | 55 131 231 333 201 448 30 80 142 983 719 517 Core 18 | 16 . . . . . . . . . . 2 Treads 421 | . . . 38 201 182 . . . . . . Legs 2343 | 39 131 231 295 . . . . . 413 719 515 Wheels . | . . . . . . . . . . . . Hover . | . . . . . . . . . . . . Flight 1088 | . . . . . 266 30 80 142 570 . . Fastest Speed 50 | 50 190 190 120 160 111 127 127 146 120 120 120 Average Speed 162 | 159 190 190 127 160 140 127 146 173 178 120 213 Slowest Speed 1450 | 200 190 190 190 160 360 127 272 186 635 120 1450 Overloaded Moves . | . . . . . . . . . . . . Propulsion Burnouts . | . . . . . . . . . . . . Robots Hopped . | . . . . . . . . . . . . Cave-ins Triggered . | . . . . . . . . . . . . Exploration Rate (%) 38 | 5 19 64 37 34 45 1 73 4 94 68 13 Regions Visited 11 Branch Regions 4 Pre-discovered Areas 1 | . . . . . . . . . 1 . . Known Exits Taken 10 | 1 1 1 1 1 1 1 . 1 1 1 . Unknown Exits Taken . | . . . . . . . . . . . . Scrap Searched 4 | . . 2 . . . . . . . 2 . Spaces Dug . | . . . . . . . . . . . . Terrain Destroyed 59 | . . . . 3 6 . . . 20 . 30 Melee . | . . . . . . . . . . . . Projectile 4 | . . . . . . . . . 4 . . AOE 55 | . . . . 3 6 . . . 16 . 30 Terrain Rammed . | . . . . . . . . . . . . Walls Destroyed . | . . . . . . . . . . . . Machines Disabled . | . . . . . . . . . . . . Actions | -11 -10 -10 -9 -9 -8 -7 -7 -6 -6 -6 -5 --------- Run | Yrd Mat Min Mat Sto Mat Fac DSF Fac Low Low Fac Total 5058 | 103 138 244 456 412 568 33 157 195 1057 855 840 Wait 644 | 28 . 6 28 183 26 . 21 31 23 123 175 Move 3859 | 54 130 230 332 200 447 29 79 141 982 718 517 Hop . | . . . . . . . . . . . . Pick Up 93 | 14 4 2 15 4 26 . 3 5 5 2 13 Fast Attach 6 | . . . 3 . 3 . . . . . . Attach 59 | 7 1 1 8 1 8 3 4 4 9 1 12 Detach 2 | . . . . . . 1 . . . 1 . Swap 35 | . 2 1 9 1 11 . 1 4 4 . 2 Drop 44 | . 1 1 9 2 20 . 2 4 2 . 3 Fire 296 | . . 3 52 19 27 . 29 6 32 10 118 Melee . | . . . . . . . . . . . . Ram . | . . . . . . . . . . . . Kick . | . . . . . . . . . . . . Crush 2 | . . . . 2 . . . . . . . Escape Stasis 18 | . . . . . . . 18 . . . . Rewire . | . . . . . . . . . . . . Trap . | . . . . . . . . . . . . Miscellaneous . | . . . . . . . . . . . . Route ------- -11/Scrapyard -10/Materials -10/Mines -9/Materials (discovered 3 exits: *Mat / *Min / *Sto) -9/Storage -8/Materials -7/Factory -7/DSF -6/Factory -6/Lower Caves -6/Lower Caves -5/Factory (discovered 1 exit: Upp) History --------- Turn | Location | Event 38 | -11/Scrapyard | Identified exit to Materials 38 | -11/Scrapyard | Discovered exit to Materials (range 14) 136 | -11/Scrapyard | Entered Materials 136 | -10/Materials | Evolved 1 slot: Utility x1 280 | -10/Materials | Identified exit to Mines 280 | -10/Materials | Discovered exit to Mines (range 13) 304 | -10/Materials | Build established: Hacker-Mutant 392 | -10/Materials | Entered Mines 524 | -10/Mines | Found the Drone Emporium 531 | -10/Mines | Found Prototype Device 541 | -10/Mines | Identified Splice Drone Bay 819 | -10/Mines | Identified exit to Materials 819 | -10/Mines | Discovered exit to Materials (range 14) 849 | -10/Mines | Entered Materials 849 | -9/Materials | Evolved 2 slots: Propulsion x2 850 | -9/Materials | Identified exit to Storage 1196 | -9/Materials | Identified exit to Mines 1196 | -9/Materials | Discovered exit to Mines (range 6) 1446 | -9/Materials | Identified exit to Materials 1446 | -9/Materials | Discovered exit to Materials (range 9) 1495 | -9/Materials | Entered Storage 1959 | -9/Storage | Assisted by bots powering up and referring to "LRC-V3" 2037 | -9/Storage | Discovered exit to Materials (range 15) 2061 | -9/Storage | Entered Materials 2061 | -8/Materials | Accompanied by 1 ally 2061 | -8/Materials | Evolved 2 slots: Utility x2 2828 | -8/Materials | Identified exit to Factory 2828 | -8/Materials | Discovered exit to Factory (range 12) 2855 | -8/Materials | Entered Factory 2855 | -7/Factory | Evolved 2 slots: Power x1, Utility x1 2895 | -7/Factory | Identified exit to DSF 2896 | -7/Factory | Entered DSF 2952 | -7/DSF | Additional patrols routed to DSF 3036 | -7/DSF | Lost 3 parts (1p2n) 3116 | -7/DSF | Identified exit to Factory 3116 | -7/DSF | Discovered exit to Factory (range 13) 3139 | -7/DSF | Sterilization system engaged 3148 | -7/DSF | Entered Factory 3148 | -6/Factory | Evolved 2 slots: Utility x2 3435 | -6/Factory | Identified exit to Lower Caves 3435 | -6/Factory | Discovered exit to Lower Caves (range 12) 3458 | -6/Factory | Entered Lower Caves 3459 | -6/Lower Caves | Encountered a Warlord checkpoint 3472 | -6/Lower Caves | Learned Factory machine intel 3639 | -6/Lower Caves | Met a Warlord Commander 3640 | -6/Lower Caves | Learned location of Warlord (-5) 3641 | -6/Lower Caves | Warlord Commander delivered Encrypted Comm Array 3647 | -6/Lower Caves | Found Encrypted Comm Array 4723 | -6/Lower Caves | Spotted B-75 Beast 4847 | -6/Lower Caves | Destroyed B-75 Beast 4862 | -6/Lower Caves | Lost 7 parts (1p2n3u1w) 5169 | -6/Lower Caves | Build established: Scavenger-Mutant 5326 | -6/Lower Caves | Identified exit to Lower Caves 5326 | -6/Lower Caves | Discovered exit to Lower Caves (range 16) 5350 | -6/Lower Caves | Entered another Lower Caves area 5411 | -6/Lower Caves | Encountered a Warlord checkpoint 5646 | -6/Lower Caves | Spotted B-75 Beast 5682 | -6/Lower Caves | Found Prototype Device 5740 | -6/Lower Caves | Identified Heart of Steel 6154 | -6/Lower Caves | Identified exit to Factory 6154 | -6/Lower Caves | Discovered exit to Factory (range 15) 6361 | -6/Lower Caves | Entered Factory 6361 | -5/Factory | Evolved 2 slots: Utility x2 6362 | -5/Factory | Identified exit to Upper Caves 6363 | -5/Factory | Loaded intel: 255 machine locations 7051 | -5/Factory | Lost 3 parts (1p1n1w) 7369 | -5/Factory | Cargo convoy interrupted 7565 | -5/Factory | Heart of Steel transformed into Warbot 7883 | -5/Factory | Core integrity fell below 50% 7910 | -5/Factory | Core integrity fell below 20% 7925 | -5/Factory | Destroyed by H-71 Marshal with Heavy Mass Driver Last Messages --------------- 07902_ Imp. Sensor Array destroyed. 07903_ K-01 Serf collects debris. 07905_ Penetrated by Slug. 07905_ K-01 Serf collects debris. 07905_ Hvy. Laser destroyed. 07905_ Knocked back. 07906_ K-01 Serf collects debris. 07909_ Penetrated by Slug. 07910_ System corrupted: Heat flow error (+195). 07911_ Slug penetrates U-05 Engineer. 07911_ K-01 Serf collects debris. 07912_ Penetrated by Slug. 07913_ K-01 Serf collects debris. 07915_ Slug penetrates Wall. 07916_ K-01 Serf collects debris. 07920_ Slug penetrates Wall. 07921_ K-01 Serf collects debris. 07923_ Penetrated by Slug. 07924_ K-01 Serf collects debris. 07925_ Penetrated by Slug. Map ----- +----------------------------------------------------+ | ??????????????????????# #???""""""?"""???????? | | ??????????????????????# #???""""""?"""???????? | | ??????????????????????# #???""""""?"""???????? | | ?????????############## #???""""""???????????? | | ?????????# # #????????????????????? | | ?????????# # #????????????????????? | | #####????# """"""" # #????????????????????? | | * #????# """"""" # #????????????????????? | | ### #????# """"""" # #????????????????????? | | #?# ###### """"!"" + ##############???????? | | #?# + %!! # # """"" ! #???????? | | #?######## """"""" # # " T ##??????? | | #????????# """"""" # # ##??????? | | #????????# """"""" # # #??????? | | #????????# """"""" # # ##?????? | | #????????# # # ! #?????? | | ?????????######+####### %+ ##?????? | | ??????????????# #?????# %#* #?????? | | ??????????????# #?????# # #?????? | | ??????????????# #?????# =! # !###?????? | | ??????????????# #?????#=%* # % #??????? | | ??????????????###?????# =!=%# ##??????? | | ??????????????????????#!%k%=### #+######???????? | | ?????????????"""??????#**!%%#?### # # ###????????? | | ?????????????"""??????#%!%%u##??### ###??????????? | | ?????????????"""??????# !@%*;#????# #????????????? | | ??????????????????????#%[%% ;#????# #?#??????????? | | ?????????????"""??????#*!!*%##### #??????????? | | ??????"T"????"""??????#%!!% #??????????? | | ?????????????"""??????#u=h % #??????????? | | ??????????????????????#! k #??????????? | | ?????????????"""??????# ##### #??????????? | | ??"""?"""????"""?????## A#?????#####??????????? | | ??"""?"""????"""??????# u u #????????????????????? | | ??"""?"""?????????????# ! #???????"""""????????? | | ?????????????"""??????#H% #???????"""""????????? | | ??"""?"""????"""??????# h #???????"""??????????? | | ??"""?"""????"""??????# #????????????????????? | | ??"""?"""?????????????# #????????????????????? | | ??????????????????????# #????????????????????? | | ??????????????????????# #????????????????????? | | ?????????????????????? #????????????????????? | | ## ?????????? ????????????????????? | | ?????????? ????????????????????? | | ## ??????????? ?????????????????????? | | ?????????????????????????????????????????????????? | | ?????????????????????????????????????????????????? | | ?????????????????????????????????????????????????? | | ?????????????????????????????????????????????????? | | ?????????????????????????????????????????????"""?? | +----------------------------------------------------+ Best States ------------- Heat Dissipation 61 Energy Generation 29 Energy Capacity 470 Matter Stores 300 Matter Capacity 300 Sight Range 16 Robot Scan Range 15 Terrain Scan Density 10 ECM Strength 1 Armor Coverage 150 Resistance: KI 35 Resistance: TH 35 Resistance: EX 35 Resistance: EM 35 Resistance: I 35 Resistance: S 35 Resistance: P 35 Power Shielding 33 Utility Shielding 66 Weapon Shielding 33 Evasion (%) 55 Targeting Accuracy 13 Melee Accuracy 6 Core Analysis 6 Recoil Reduction 4 Offensive Hacking 20 Item Schematics ----------------- None Robot Schematics ------------------ None Fabricated ------------ Nothing Alien Tech Used ----------------- None Achievements -------------- None Challenges ------------ None Game ------ Seed ImpulseAlphaArmor Manual? 0 Play Time 00:54:48 Cumulative 38.0 hours Start 2024.07.22 @ 06:04:46 End 2024.07.22 @ 07:19:57 Sessions 2 Manual Loads 0 Difficulty Explorer Special Mode None Game No. 92 Rogue 20 Adventurer 46 Explorer 26 Win Type - Total 0 Types 0/0/0/0/0/0/0/0/0 Lore% 10 Gallery% 35 Achievement% 24 Wizard Run 0 Options --------- Layout 1 ASCII 0 Keyboard 0 Movement Mouse Keybinds 0 Fullscreen 1 Font 24/Smallcaps Map View 50x35 Zoom Use 0% Tactical HUD 1 Map Filters NONE Filters NONE Steam 1 RUN: 5030ad0b-d3d7-4156-9340-d1ad4b998cf7